fUST/lending_fUST_20250102
["ID","MTS","AMOUNT","RATE_DAILY","PERIOD"]
[347456191,1735831841701,-500.0,0.00019452,3]
[347456192,1735831841710,-500.0,0.00019452,3]
[347456193,1735831841719,-500.0,0.00019452,3]
[347456194,1735831841730,-500.0,0.00019452,3]
[347456195,1735831841740,-500.0,0.00019452,3]
[347456196,1735831841749,-526.01,0.00019452,3]
[347456197,1735831841760,-500.0,0.00019452,3]
[347456198,1735831841772,-398.16,0.00019452,3]
[347456199,1735831841781,-500.0,0.00019452,3]
[347456200,1735831841791,-500.0,0.00019452,3]
[347456201,1735831841802,-500.0,0.00019452,3]
[347456202,1735831841812,-500.0,0.00019452,3]
[347456203,1735831841821,-500.0,0.00019452,3]
[347456204,1735831841830,-465.99,0.00019452,3]
[347456205,1735831841840,-500.0,0.00019452,3]
[347456206,1735831841849,-500.0,0.00019452,3]
[347456207,1735831841859,-500.0,0.00019452,3]
[347456208,1735831841868,-473.58,0.00019452,3]
[347456209,1735831841878,-500.0,0.00019452,3]
[347456210,1735831841887,-500.0,0.00019452,3]
[347456211,1735831841897,-309.87,0.00019452,3]
[347456212,1735831841906,-387.93,0.00019452,3]
[347456213,1735831841915,-500.0,0.00019452,3]
[347456214,1735831841924,-500.0,0.00019452,3]
[347456215,1735831841934,-500.0,0.00019452,3]
[347456216,1735831841944,-500.0,0.00019452,3]
[347456217,1735831841954,-500.0,0.00019452,3]
[347456218,1735831841963,-500.0,0.00019452,3]
[347456219,1735831841972,-500.0,0.00019452,3]
[347456220,1735831841982,-500.0,0.00019452,3]
[347456221,1735831841991,-500.0,0.00019452,3]
[347456222,1735831842001,-500.0,0.00019452,3]
[347456223,1735831842011,-1719.17,0.00019452,3]
[347456224,1735831842020,-500.0,0.00019452,3]
[347456225,1735831842030,-500.0,0.00019452,3]
[347456226,1735831842040,-1202.04,0.00019452,3]
[347456227,1735831842051,-169.2,0.00019452,3]
[347456228,1735831842061,-424.8,0.00019452,3]
[347456229,1735831842071,-500.0,0.00019452,3]
[347456230,1735831842080,-500.0,0.00019452,3]
[347456231,1735831842090,-885.22,0.00019452,3]
[347456232,1735831842100,-500.0,0.00019452,2]
[347456233,1735831842109,-511.04,0.00019452,3]
[347456234,1735831842119,-406.63,0.00019452,3]
[347456235,1735831842128,-574.88,0.00019452,3]
[347456236,1735831842137,-1612.95,0.00019452,3]
[347456237,1735831842147,-461.46,0.00019452,3]
[347456238,1735831842157,-500.0,0.00019452,3]
[347456239,1735831842167,-500.0,0.00019452,3]
[347456240,1735831842176,-547.15,0.00019452,3]
[347456241,1735831842185,-1119.38,0.00019452,3]
[347456242,1735831842193,-9374.38,0.00019452,3]
[347456243,1735831842203,-610.89,0.00019452,3]
[347456244,1735831842212,-500.0,0.00019452,3]
[347456245,1735831842222,-1846.99,0.00019452,3]
[347456246,1735831842231,-500.0,0.00019452,3]
[347456247,1735831842240,-500.0,0.00019452,3]
[347456248,1735831842251,-160.61,0.00019452,3]
[347456249,1735831842261,-163.77,0.00019452,3]
[347456250,1735831842271,-500.0,0.00019452,3]
[347456251,1735831842282,-242.06,0.00019452,3]
[347456252,1735831842291,-500.0,0.00019452,3]
[347456253,1735831842302,-500.0,0.00019452,3]
[347456254,1735831842312,-500.0,0.00019452,3]
[347456255,1735831842321,-754.88,0.00019452,3]
[347456256,1735831842332,-500.0,0.00019452,3]
[347456257,1735831842341,-500.0,0.00019452,3]
[347456258,1735831842351,-801.95250035,0.00019725,2]
[347456259,1735831842360,-500.0,0.00019725,2]
[347456260,1735831842369,-551.75516807,0.00019725,2]
[347456261,1735831842379,-357.79853681,0.00019725,2]
[347456262,1735831842388,-155.13,0.00019726,3]
[347456263,1735831842398,-500.0,0.00019726,3]
[347456264,1735831842407,-500.0,0.00019726,3]
[347456265,1735831842417,-500.0,0.00019726,3]
[347456266,1735831842427,-500.0,0.00019726,3]
[347456267,1735831842436,-548.35313988,0.00019726,3]
[347456268,1735831842446,-259.16,0.00019726,3]
[347456269,1735831842575,-500.0,0.00019726,3]
[347456270,1735831842585,-500.0,0.00019726,3]
[347456271,1735831842596,-469.72,0.00019726,3]
[347456272,1735831842606,-389.29,0.00019726,3]
[347456273,1735831842615,-500.0,0.00019726,3]
[347456274,1735831842624,-500.0,0.00019726,3]
[347456275,1735831842634,-500.0,0.00019726,3]
[347456276,1735831842644,-500.0,0.00019726,3]
[347456277,1735831842654,-500.0,0.00019726,3]
[347456278,1735831842663,-175.66,0.00019726,3]
[347456279,1735831842672,-500.0,0.00019726,3]
[347456280,1735831842682,-1719.17,0.00019726,3]
[347456281,1735831842696,-500.0,0.00019726,3]
[347456282,1735831842706,-500.0,0.00019726,3]
[347456283,1735831842715,-1202.04,0.00019726,3]
[347456284,1735831842725,-500.0,0.00019726,3]
[347456285,1735831842735,-613.88,0.00019726,3]
[347456286,1735831842745,-885.22,0.00019726,3]
[347456287,1735831842754,-500.0,0.00019726,2]
[347456288,1735831842765,-1612.95,0.00019726,3]
[347456289,1735831842774,-500.0,0.00019726,3]
[347456290,1735831842784,-500.0,0.00019726,3]
[347456291,1735831842796,-547.15,0.00019726,3]
[347456292,1735831842805,-1119.38,0.00019726,3]
[347456293,1735831842814,-9374.38,0.00019726,3]
[347456294,1735831842824,-610.89,0.00019726,3]
[347456295,1735831842834,-500.0,0.00019726,3]
[347456296,1735831842844,-1846.99,0.00019726,3]
[347456297,1735831842855,-500.0,0.00019726,3]
[347456298,1735831842864,-500.0,0.00019726,3]
[347456299,1735831842874,-500.0,0.00019726,3]
[347456300,1735831842883,-500.0,0.00019726,3]
[347456301,1735831842892,-500.0,0.00019726,3]
[347456302,1735831842902,-754.88,0.00019726,3]
[347456303,1735831842911,-500.0,0.00019726,3]
[347456304,1735831842921,-500.0,0.00019726,3]
[347456305,1735831842930,-250.38815073,0.000199,2]
[347456306,1735831842940,-500.0,0.0002,3]
[347456307,1735831842949,-532.47,0.0002,3]
[347456308,1735831842958,-356.77,0.0002,3]
[347456309,1735831842967,-289.61,0.0002,3]
[347456310,1735831842976,-500.0,0.0002,3]
[347456311,1735831842985,-500.0,0.0002,3]
[347456312,1735831842995,-500.0,0.0002,3]
[347456313,1735831843004,-500.0,0.0002,3]
[347456314,1735831843014,-500.0,0.0002,3]
[347456315,1735831843023,-500.0,0.0002,3]
[347456316,1735831843033,-500.0,0.0002,3]
[347456317,1735831843046,-500.0,0.0002,3]
[347456318,1735831843058,-1719.17,0.0002,3]
[347456319,1735831843067,-500.0,0.0002,3]
[347456320,1735831843077,-500.0,0.0002,3]
[347456321,1735831843087,-1202.04,0.0002,3]
[347456322,1735831843097,-208.14,0.0002,3]
[347456323,1735831843107,-885.22,0.0002,3]
[347456325,1735831843116,-500.0,0.0002,2]
[347456327,1735831843126,-1612.95,0.0002,3]
[347456328,1735831843135,-500.0,0.0002,3]
[347456330,1735831843145,-500.0,0.0002,3]
[347456331,1735831843155,-547.15,0.0002,3]
[347456332,1735831843165,-1119.38,0.0002,3]
[347456333,1735831843174,-9374.38,0.0002,3]
[347456334,1735831843184,-610.89,0.0002,3]
[347456335,1735831843194,-500.0,0.0002,3]
[347456336,1735831843203,-1846.99,0.0002,3]
[347456337,1735831843213,-500.0,0.0002,3]
[347456338,1735831843223,-500.0,0.0002,3]
[347456339,1735831843233,-500.0,0.0002,3]
[347456340,1735831843243,-500.0,0.0002,3]
[347456341,1735831843252,-500.0,0.0002,3]
[347456342,1735831843262,-754.88,0.0002,3]
[347456343,1735831843271,-385.49,0.0002,3]
[347456344,1735831843281,-173.7,0.0002,3]
[347456345,1735831843291,-250.38815061,0.00020058,2]
[347456346,1735831843305,-250.38815061,0.00020216,2]
[347456347,1735831843314,-500.0,0.00020273,3]
[347456348,1735831843324,-500.0,0.00020273,3]
[347456349,1735831843333,-500.0,0.00020273,3]
[347456350,1735831843342,-500.0,0.00020273,3]
[347456351,1735831843352,-500.0,0.00020273,3]
[347456352,1735831843361,-500.0,0.00020273,3]
[347456353,1735831843371,-500.0,0.00020273,3]
[347456354,1735831843380,-500.0,0.00020273,3]
[347456355,1735831843389,-500.0,0.00020273,3]
[347456356,1735831843399,-1719.17,0.00020273,3]
[347456357,1735831843409,-500.0,0.00020273,3]
[347456358,1735831843419,-500.0,0.00020273,3]
[347456359,1735831843428,-1202.04,0.00020273,3]
[347456360,1735831843437,-885.22,0.00020273,3]
[347456361,1735831843447,-500.0,0.00020273,2]
[347456362,1735831843457,-1612.95,0.00020273,3]
[347456363,1735831843467,-500.0,0.00020273,3]
[347456364,1735831843476,-499.0,0.00020273,2]
[347456365,1735831843486,-500.0,0.00020273,3]
[347456366,1735831843495,-547.15,0.00020273,3]
[347456367,1735831843505,-1119.38,0.00020273,3]
[347456368,1735831843514,-9374.38,0.00020273,3]
[347456369,1735831843524,-610.89,0.00020273,3]
[347456370,1735831843534,-500.0,0.00020273,3]
[347456372,1735831843547,-1846.99,0.00020273,3]
[347456373,1735831843556,-500.0,0.00020273,3]
[347456374,1735831843566,-500.0,0.00020273,3]
[347456375,1735831843575,-500.0,0.00020273,3]
[347456376,1735831843585,-500.0,0.00020273,3]
[347456377,1735831843594,-500.0,0.00020273,3]
[347456378,1735831843603,-754.88,0.00020273,3]
[347456379,1735831843613,-250.38815061,0.00020374,2]
[347456380,1735831843622,-420.0,0.00020459,2]
[347456381,1735831843632,-187.273969,0.00020521,2]
[347456382,1735831843641,-250.38815061,0.00020532,2]
[347456383,1735831843651,-500.0,0.00020547,3]
[347456384,1735831843660,-500.0,0.00020547,3]
[347456385,1735831843670,-500.0,0.00020547,3]
[347456386,1735831843679,-500.0,0.00020547,3]
[347456388,1735831843690,-500.0,0.00020547,3]
[347456389,1735831843701,-500.0,0.00020547,3]
[347456390,1735831843711,-500.0,0.00020547,3]
[347456391,1735831843720,-500.0,0.00020547,3]
[347456392,1735831843731,-500.0,0.00020547,3]
[347456393,1735831843740,-1719.17,0.00020547,3]
[347456394,1735831843749,-500.0,0.00020547,3]
[347456395,1735831843759,-500.0,0.00020547,3]
[347456396,1735831843768,-1202.04,0.00020547,3]
[347456397,1735831843777,-885.22,0.00020547,3]
[347456398,1735831843787,-500.0,0.00020547,2]
[347456399,1735831843799,-1612.95,0.00020547,3]
[347456400,1735831843809,-500.0,0.00020547,3]
[347456401,1735831843818,-500.0,0.00020547,3]
[347456402,1735831843828,-547.15,0.00020547,3]
[347456403,1735831843838,-1119.38,0.00020547,3]
[347456404,1735831843847,-9374.38,0.00020547,3]
[347456405,1735831843857,-610.89,0.00020547,3]
[347456406,1735831843866,-500.0,0.00020547,3]
[347456407,1735831843876,-1846.99,0.00020547,3]
[347456408,1735831843886,-500.0,0.00020547,3]
[347456409,1735831843895,-500.0,0.00020547,3]
[347456410,1735831843905,-500.0,0.00020547,3]
[347456411,1735831843914,-500.0,0.00020547,3]
[347456412,1735831843924,-500.0,0.00020547,3]
[347456413,1735831843934,-754.88,0.00020547,3]
[347456414,1735831843943,-250.38815061,0.00020689,2]
[347456415,1735831843952,-500.0,0.00020821,3]
[347456416,1735831843961,-500.0,0.00020821,3]
[347456417,1735831843972,-474.48329512,0.00020821,3]
[347456418,1735831843982,-500.0,0.00020821,3]
[347456419,1735831843994,-500.0,0.00020821,3]
[347456420,1735831844004,-500.0,0.00020821,3]
[347456421,1735831844013,-500.0,0.00020821,3]
[347456422,1735831844022,-500.0,0.00020821,3]
[347456423,1735831844032,-500.0,0.00020821,3]
[347456424,1735831844044,-1719.17,0.00020821,3]
[347456425,1735831844053,-500.0,0.00020821,3]
[347456426,1735831844063,-500.0,0.00020821,3]
[347456427,1735831844072,-1202.04,0.00020821,3]
[347456428,1735831844082,-885.22,0.00020821,3]
[347456429,1735831844090,-500.0,0.00020821,2]
[347456430,1735831844100,-1612.95,0.00020821,3]
[347456431,1735831844109,-500.0,0.00020821,3]
[347456432,1735831844118,-393.54712881,0.00020821,3]
[347456433,1735831844127,-547.15,0.00020821,3]
[347456434,1735831844136,-1119.38,0.00020821,3]
[347456435,1735831844145,-9374.38,0.00020821,3]
[347456436,1735831844154,-610.89,0.00020821,3]
[347456437,1735831844164,-500.0,0.00020821,3]
[347456438,1735831844173,-1846.99,0.00020821,3]
[347456439,1735831844183,-500.0,0.00020821,3]
[347456440,1735831844193,-500.0,0.00020821,3]
[347456441,1735831844203,-500.0,0.00020821,3]
[347456442,1735831844213,-500.0,0.00020821,3]
[347456443,1735831844222,-500.0,0.00020821,3]
[347456444,1735831844233,-754.88,0.00020821,3]
[347456445,1735831844243,-250.38815061,0.00020847,2]
[347456446,1735831844253,-151.0,0.00021,2]
[347456447,1735831844262,-151.0,0.00021,2]
[347456448,1735831844271,-151.0,0.00021,2]
[347456449,1735831844281,-250.38815061,0.00021005,2]
[347456450,1735831844291,-187.273969,0.00021032,2]
[347456451,1735831844302,-500.0,0.00021095,3]
[347456452,1735831844311,-500.0,0.00021095,3]
[347456453,1735831844321,-500.0,0.00021095,3]
[347456454,1735831844331,-500.0,0.00021095,3]
[347456455,1735831844341,-500.0,0.00021095,3]
[347456456,1735831844351,-500.0,0.00021095,3]
[347456457,1735831844361,-500.0,0.00021095,3]
[347456458,1735831844370,-500.0,0.00021095,3]
[347456459,1735831844380,-1719.17,0.00021095,3]
[347456460,1735831844390,-508.28128328,0.00021095,3]
[347456461,1735831844399,-500.0,0.00021095,3]
[347456462,1735831844409,-1202.04,0.00021095,3]
[347456463,1735831844419,-885.22,0.00021095,3]
[347456464,1735831844428,-500.0,0.00021095,2]
[347456465,1735831844438,-1612.95,0.00021095,3]
[347456466,1735831844448,-519.68,0.00021095,3]
[347456467,1735831844457,-547.15,0.00021095,3]
[347456468,1735831844467,-1119.38,0.00021095,3]
[347456469,1735831844476,-9374.38,0.00021095,3]
[347456470,1735831844486,-610.89,0.00021095,3]
[347456471,1735831844496,-500.0,0.00021095,3]
[347456472,1735831844506,-500.0,0.00021095,3]
[347456473,1735831844515,-1846.99,0.00021095,3]
[347456474,1735831844524,-500.0,0.00021095,3]
[347456475,1735831844533,-500.0,0.00021095,3]
[347456476,1735831844544,-500.0,0.00021095,3]
[347456477,1735831844554,-500.0,0.00021095,3]
[347456478,1735831844563,-754.88,0.00021095,3]
[347456479,1735831844573,-250.38815061,0.00021163,2]
[347456480,1735831844582,-250.38815061,0.00021321,2]
[347456481,1735831844591,-348.04,0.00021369,3]
[347456482,1735831844601,-500.0,0.00021369,3]
[347456483,1735831844610,-500.0,0.00021369,3]
[347456484,1735831844620,-500.0,0.00021369,3]
[347456485,1735831844630,-500.0,0.00021369,3]
[347456486,1735831844639,-500.0,0.00021369,3]
[347456487,1735831844649,-500.0,0.00021369,3]
[347456488,1735831844659,-500.0,0.00021369,3]
[347456489,1735831844668,-1719.17,0.00021369,3]
[347456490,1735831844678,-500.0,0.00021369,3]
[347456491,1735831844689,-1202.04,0.00021369,3]
[347456492,1735831844700,-885.22,0.00021369,3]
[347456493,1735831844709,-500.0,0.00021369,2]
[347456494,1735831844719,-1612.95,0.00021369,3]
[347456495,1735831844731,-547.15,0.00021369,3]
[347456496,1735831844740,-1119.38,0.00021369,3]
[347456497,1735831844750,-9374.38,0.00021369,3]
[347456498,1735831844759,-610.89,0.00021369,3]
[347456499,1735831844770,-500.0,0.00021369,3]
[347456500,1735831844779,-1846.99,0.00021369,3]
[347456501,1735831844789,-500.0,0.00021369,3]
[347456502,1735831844799,-500.0,0.00021369,3]
[347456503,1735831844809,-500.0,0.00021369,3]
[347456504,1735831844819,-500.0,0.00021369,3]
[347456505,1735831844828,-500.0,0.00021369,3]
[347456506,1735831844837,-754.88,0.00021369,3]
[347456507,1735831844848,-591.816,0.0002147,2]
[347456508,1735831844857,-250.38815061,0.00021479,2]
[347456509,1735831844867,-151.0,0.000215,3]
[347456510,1735831844876,-187.273969,0.00021543,2]
[347456511,1735831844885,-250.38815061,0.00021637,2]
[347456512,1735831844895,-500.0,0.00021643,3]
[347456513,1735831844904,-500.0,0.00021643,3]
[347456514,1735831844914,-500.0,0.00021643,3]
[347456515,1735831844924,-500.0,0.00021643,3]
[347456516,1735831844933,-500.0,0.00021643,3]
[347456517,1735831844943,-500.0,0.00021643,3]
[347456518,1735831844952,-500.0,0.00021643,3]
[347456519,1735831844962,-1719.17,0.00021643,3]
[347456520,1735831844972,-515.01,0.00021643,3]
[347456521,1735831844981,-1202.04,0.00021643,3]
[347456522,1735831844991,-885.22,0.00021643,3]
[347456523,1735831845000,-500.0,0.00021643,2]
[347456524,1735831845010,-1612.95,0.00021643,3]
[347456525,1735831845020,-547.15,0.00021643,3]
[347456526,1735831845030,-1119.38,0.00021643,3]
[347456527,1735831845039,-9374.38,0.00021643,3]
[347456528,1735831845054,-610.89,0.00021643,3]
[347456529,1735831845063,-500.0,0.00021643,3]
[347456530,1735831845073,-500.0,0.00021643,3]
[347456531,1735831845082,-1846.99,0.00021643,3]
[347456532,1735831845092,-552.0,0.00021643,3]
[347456533,1735831845101,-500.0,0.00021643,3]
[347456534,1735831845111,-500.0,0.00021643,3]
[347456535,1735831845120,-527.48212174,0.00021643,3]
[347456536,1735831845129,-754.88,0.00021643,3]
[347456537,1735831845139,-250.38815061,0.00021795,2]
[347456538,1735831845148,-151.0,0.000218,4]
[347456539,1735831845157,-151.0,0.000219,2]
[347456540,1735831845167,-151.0,0.000219,2]
[347456541,1735831845176,-151.0,0.000219,2]
[347456542,1735831845186,-500.0,0.00021917,3]
[347456543,1735831845196,-500.0,0.00021917,3]
[347456544,1735831845206,-500.0,0.00021917,3]
[347456545,1735831845216,-500.0,0.00021917,3]
[347456546,1735831845226,-500.0,0.00021917,3]
[347456547,1735831845235,-500.0,0.00021917,3]
[347456548,1735831845245,-500.0,0.00021917,3]
[347456549,1735831845255,-1719.17,0.00021917,3]
[347456550,1735831845264,-1202.04,0.00021917,3]
[347456551,1735831845274,-885.22,0.00021917,3]
[347456552,1735831845283,-500.0,0.00021917,2]
[347456553,1735831845297,-1612.95,0.00021917,3]
[347456554,1735831845308,-547.15,0.00021917,3]
[347456555,1735831845317,-9374.38,0.00021917,3]
[347456556,1735831845326,-1119.38,0.00021917,3]
[347456557,1735831845335,-610.89,0.00021917,3]
[347456558,1735831845345,-500.0,0.00021917,3]
[347456559,1735831845355,-500.0,0.00021917,3]
[347456560,1735831845364,-1846.99,0.00021917,3]
[347456561,1735831845374,-500.0,0.00021917,3]
[347456562,1735831845384,-500.0,0.00021917,3]
[347456563,1735831845394,-754.88,0.00021917,3]
[347456564,1735831845404,-250.38815061,0.00021953,2]
[347456565,1735831845413,-156.0,0.00022,2]
[347456566,1735831845423,-150.0,0.00022,2]
[347456567,1735831845433,-1001.527065,0.00022,2]
[347456568,1735831845443,-187.273969,0.00022055,2]
[347456569,1735831845452,-250.38815061,0.00022111,2]
[347456570,1735831845462,-7610.32247717,0.00022129,2]
[347456571,1735831845472,-5000.0,0.00022129,2]
[347456572,1735831845590,-5000.0,0.00022129,2]
[347456573,1735831845600,-5000.0,0.00022129,2]
[347456574,1735831845610,-1258.11,0.00022149,2]
[347456575,1735831845620,-394.0,0.00022149,2]
[347456576,1735831845630,-150.0,0.00022149,2]
[347456577,1735831845639,-500.0,0.00022191,3]
[347456578,1735831845648,-500.0,0.00022191,3]
[347456579,1735831845658,-500.0,0.00022191,3]
[347456580,1735831845669,-500.0,0.00022191,3]
[347456581,1735831845678,-500.0,0.00022191,3]
[347456582,1735831845692,-500.0,0.00022191,3]
[347456583,1735831845701,-500.0,0.00022191,3]
[347456584,1735831845711,-1719.17,0.00022191,3]
[347456585,1735831845720,-1202.04,0.00022191,3]
[347456586,1735831845730,-885.22,0.00022191,3]
[347456587,1735831845740,-500.0,0.00022191,2]
[347456588,1735831845749,-1612.95,0.00022191,3]
[347456589,1735831845760,-547.15,0.00022191,3]
[347456590,1735831845769,-9374.38,0.00022191,3]
[347456591,1735831845778,-1119.38,0.00022191,3]
[347456592,1735831845787,-610.89,0.00022191,3]
[347456593,1735831845800,-500.0,0.00022191,3]
[347456594,1735831845809,-1846.99,0.00022191,3]
[347456595,1735831845818,-500.0,0.00022191,3]
[347456596,1735831845827,-648.92,0.00022191,3]
[347456597,1735831845837,-500.0,0.00022191,3]
[347456598,1735831845846,-754.88,0.00022191,3]
[347456599,1735831845855,-156.0,0.00022192,2]
[347456600,1735831845865,-684.66,0.000222,2]
[347456601,1735831845876,-151.0,0.000222,7]
[347456602,1735831845886,-278.26311,0.000222,2]
[347456603,1735831845895,-250.38815061,0.00022268,2]
[347456604,1735831845904,-600.0,0.00022294,2]
[347456605,1735831845914,-587.0,0.00022306,2]
[347456606,1735831845923,-1000.0,0.00022333,2]
[347456607,1735831845933,-1000.0,0.00022338,2]
[347456608,1735831845945,-151.0,0.0002234,7]
[347456609,1735831845955,-1000.0,0.0002236,2]
[347456610,1735831845965,-1000.0,0.00022363,2]
[347456611,1735831845975,-6105.27696587,0.00022407,7]
[347456612,1735831845984,-5164.75756255,0.00022426,7]
[347456613,1735831845993,-250.38815061,0.00022426,2]
[347456614,1735831846003,-1000.0,0.00022452,2]
[347456615,1735831846012,-5434.91984304,0.00022455,2]
[347456616,1735831846022,-500.0,0.00022465,3]
[347456617,1735831846032,-500.0,0.00022465,3]
[347456618,1735831846041,-500.0,0.00022465,3]
[347456619,1735831846053,-500.0,0.00022465,3]
[347456620,1735831846062,-500.0,0.00022465,3]
[347456621,1735831846072,-247.16321018,0.00022465,3]
[347456622,1735831846081,-500.0,0.00022465,3]
[347456623,1735831846090,-1719.17,0.00022465,3]
[347456624,1735831846102,-1202.04,0.00022465,3]
[347456625,1735831846111,-885.22,0.00022465,3]
[347456626,1735831846121,-500.0,0.00022465,2]
[347456627,1735831846130,-1612.95,0.00022465,3]
[347456628,1735831846140,-13469.17357583,0.00022465,14]
[347456629,1735831846150,-547.15,0.00022465,3]
[347456630,1735831846159,-9374.38,0.00022465,3]
[347456631,1735831846170,-1119.38,0.00022465,3]
[347456632,1735831846180,-610.89,0.00022465,3]
[347456633,1735831846190,-500.0,0.00022465,3]
[347456634,1735831846200,-1846.99,0.00022465,3]
[347456635,1735831846210,-500.0,0.00022465,3]
[347456636,1735831846223,-500.0,0.00022465,3]
[347456638,1735831846233,-754.88,0.00022465,3]
[347456639,1735831846242,-151.0,0.00022467,7]
[347456640,1735831846252,-151.0,0.00022467,7]
[347456641,1735831846263,-151.0,0.00022467,7]
[347456642,1735831846273,-852.40072884,0.00022476,2]
[347456643,1735831846283,-1000.0,0.00022493,2]
[347456644,1735831846295,-151.0,0.00022493,2]
[347456645,1735831846305,-9399.52,0.000225,2]
[347456646,1735831846314,-10617.55,0.000225,14]
[347456647,1735831846324,-3812.14,0.000225,14]
[347456648,1735831846334,-1000.0,0.000225,2]
[347456649,1735831846344,-151.0,0.000225,7]
[347456650,1735831846353,-151.0,0.000225,7]
[347456651,1735831846364,-309.282726,0.00022505,7]
[347456652,1735831846373,-309.282726,0.00022505,7]
[347456653,1735831846382,-151.0,0.00022505,7]
[347456654,1735831846392,-7714.37469928,0.00022505,2]
[347456655,1735831846402,-151.0,0.00022505,7]
[347456656,1735831846411,-1000.0,0.0002254,2]
[347456657,1735831846421,-1000.0,0.00022542,2]
[347456658,1735831846430,-151.0,0.00022542,7]
[347456659,1735831846440,-151.0,0.00022542,7]
[347456660,1735831846449,-151.0,0.00022542,7]
[347456661,1735831846459,-690.003136,0.00022542,7]
[347456662,1735831846469,-690.003136,0.00022542,7]
[347456663,1735831846479,-161.199224,0.00022542,7]
[347456664,1735831846488,-161.199224,0.00022542,7]
[347456666,1735831846498,-151.0,0.00022542,7]
[347456668,1735831846508,-151.0,0.00022542,7]
[347456670,1735831846518,-2780.613821,0.00022542,7]
[347456671,1735831846527,-2780.613821,0.00022542,7]
[347456672,1735831846537,-1000.0,0.00022562,2]
[347456674,1735831846549,-250.38815061,0.00022584,2]
[347456675,1735831846560,-151.0,0.00022596,7]
[347456676,1735831846570,-154.638789,0.00022596,7]
[347456677,1735831846579,-154.638789,0.00022596,7]
[347456678,1735831846589,-154.638789,0.00022596,7]
[347456679,1735831846600,-154.638789,0.00022596,7]
[347456680,1735831846610,-154.638789,0.00022596,7]
[347456681,1735831846619,-154.638789,0.00022596,7]
[347456682,1735831846629,-154.638789,0.00022596,7]
[347456683,1735831846638,-154.638789,0.00022596,7]
[347456684,1735831846648,-154.638789,0.00022596,7]
[347456685,1735831846658,-154.638789,0.00022596,7]
[347456686,1735831846667,-154.638789,0.00022596,7]
[347456687,1735831846677,-154.638789,0.00022596,7]
[347456688,1735831846687,-154.638789,0.00022596,7]
[347456689,1735831846700,-154.638789,0.00022596,7]
[347456690,1735831846710,-154.638789,0.00022596,7]
[347456691,1735831846719,-154.638789,0.00022596,7]
[347456692,1735831846729,-154.638789,0.00022596,7]
[347456693,1735831846739,-154.638789,0.00022596,7]
[347456694,1735831846748,-428.523351,0.00022596,7]
[347456695,1735831846757,-154.638789,0.00022596,7]
[347456696,1735831846767,-428.523351,0.00022596,7]
[347456697,1735831846777,-154.638791,0.00022596,7]
[347456698,1735831846787,-428.523351,0.00022596,7]
[347456699,1735831846802,-428.523351,0.00022596,7]
[347456700,1735831846812,-428.523351,0.00022596,7]